[Event "FIDE Open World Rapid 2024"]
[Site "New York"]
[Date "2024.12.27"]
[Round "6.23"]
[White "Bluebaum, Matthias"]
[Black "Can, Isik"]
[Result "0-1"]
[ECO "A11"]
[WhiteElo "2650"]
[BlackElo "2499"]
[Annotator "ChessBase"]
[PlyCount "142"]
[EventDate "2024.12.14"]
[EventType "swiss"]
[EventCountry "USA"]
[SourceTitle "playchess.com"]
[Source "ChessBase"]
[SourceQuality "1"]
[TimeControl "900+10"]

1. Nf3 {[%emt 0:00:01]} d5 {[%emt 0:00:44]} 2. e3 {[%emt 0:00:02]} Nf6 {[%emt 0:00:04]} 3. c4 {[%emt 0:00:01]} c6 {[%emt 0:00:01]} 4. Qc2 {[%emt 0:00:18]} g6 {[%emt 0:00:02]} 5. b3 {[%emt 0:00:02]} Bg7 {[%emt 0:00:06]} 6. Bb2 {[%emt 0:00:01]} O-O {[%emt 0:00:02]} 7. Be2 {[%emt 0:00:02]} c5 {[%emt 0:00:07]} 8. cxd5 {[%emt 0:00:14]} Qxd5 {[%emt 0:00:42]} 9. Nc3 {[%emt 0:00:02]} Qf5 {[%emt 0:00:02]} 10. Qxf5 {[%emt 0:00:51]} Bxf5 {[%emt 0:00:02]} 11. d4 {[%emt 0:00:06]} Nc6 {[%emt 0:01:17]} 12. Na4 {[%emt 0:02:26]} Ne4 {[%emt 0:02:55]} 13. dxc5 {[%emt 0:00:10]} Bxb2 {[%emt 0:00:13]} 14. Nxb2 {[%emt 0:00:02]} Nxc5 {[%emt 0:00:30]} 15. Rc1 {[%emt 0:00:05]} Ne4 {[%emt 0:00:36]} 16. O-O {[%emt 0:00:31]} Rfd8 {[%emt 0:00:31]} 17. Bb5 {[%emt 0:02:44]} Nb4 {[%emt 0:01:36]} 18. a3 {[%emt 0:01:19]} Na2 {[%emt 0:01:08]} 19. Rc7 {[%emt 0:01:12]} Nec3 {[%emt 0:00:08]} 20. Nd4 {[%emt 0:00:01]} Rxd4 {[%emt 0:01:02]} 21. exd4 {[%emt 0:00:01]} Nxb5 {[%emt 0:00:01]} 22. Rxe7 {[%emt 0:00:01]} b6 {[%emt 0:01:26]} 23. d5 {[%emt 0:03:40]} Nac3 {[%emt 0:00:02]} 24. Rfe1 {[%emt 0:00:35]} Nxd5 {[%emt 0:00:24]} 25. Re8+ {[%emt 0:00:01]} Rxe8 {[%emt 0:00:02]} 26. Rxe8+ {[%emt 0:00:01]} Kg7 {[%emt 0:00:01]} 27. a4 {[%emt 0:00:00]} Nd4 {[%emt 0:00:12]} 28. Ra8 {[%emt 0:00:41]} a5 {[%emt 0:00:20]} 29. Nc4 {[%emt 0:00:02]} Nxb3 {[%emt 0:03:24]} 30. Rb8 {[%emt 0:00:01]} Bd7 {[%emt 0:00:45]} 31. Nxb6 {[%emt 0:00:02]} Nxb6 {[%emt 0:00:01]} 32. Rxb6 {[%emt 0:00:01]} Bxa4 {[%emt 0:00:01]} 33. f4 {[%emt 0:00:30]} Nc5 {[%emt 0:00:20]} 34. Kf2 {[%emt 0:00:05]} Bd7 {[%emt 0:00:57]} 35. Ke3 {[%emt 0:00:01]} Kf8 {[%emt 0:00:28]} 36. g3 {[%emt 0:00:59]} Ke7 {[%emt 0:00:15]} 37. Kd4 {[%emt 0:00:00]} Ne6+ {[%emt 0:00:01]} 38. Kd5 {[%emt 0:00:01]} a4 {[%emt 0:00:19]} 39. Rb7 {[%emt 0:00:01]} h5 {[%emt 0:00:12]} 40. Ra7 {[%emt 0:00:02]} Ng7 {[%emt 0:00:03]} 41. Ke5 {[%emt 0:00:36]} Nf5 {[%emt 0:00:03]} 42. Ke4 {[%emt 0:00:02]} Kd6 {[%emt 0:00:07]} 43. Kd3 {[%emt 0:00:23]} Bb5+ {[%emt 0:00:19]} 44. Kc3 {[%emt 0:00:05]} Bd7 {[%emt 0:00:08]} 45. Kd3 {[%emt 0:00:02]} f6 {[%emt 0:00:02]} 46. Ra6+ {[%emt 0:00:28]} Bc6 {[%emt 0:00:02]} 47. Ra7 {[%emt 0:00:01]} Kc5 {[%emt 0:00:45]} 48. Rf7 {[%emt 0:00:19]} a3 {[%emt 0:00:10]} 49. Kc3 {[%emt 0:00:01]} Nd6 {[%emt 0:00:11]} 50. Rg7 {[%emt 0:00:03]} Nb5+ {[%emt 0:00:04]} 51. Kc2 {[%emt 0:00:14]} Kb4 {[%emt 0:00:04]} 52. Rf7 {[%emt 0:00:13]} Be4+ {[%emt 0:00:08]} 53. Kc1 {[%emt 0:00:04]} Nd4 {[%emt 0:00:16]} 54. Ra7 {[%emt 0:00:32]} Nb3+ {[%emt 0:00:01]} 55. Kd1 {[%emt 0:00:01]} Bb1 {[%emt 0:00:04]} 56. Rb7+ {[%emt 0:00:01]} Kc3 {[%emt 0:00:02]} 57. Rc7+ {[%emt 0:00:05]} Kb2 {[%emt 0:00:02]} 58. Ke2 {[%emt 0:00:01]} a2 {[%emt 0:00:08]} 59. Ra7 {[%emt 0:00:01]} Bf5 {[%emt 0:00:16]} 60. Kf3 {[%emt 0:00:06]} a1=Q {[%emt 0:00:03]} 61. Rxa1 {[%emt 0:00:01]} Kxa1 {[%emt 0:00:02]} 62. Kg2 {[%emt 0:00:02]} Kb2 {[%emt 0:00:02]} 63. h3 {[%emt 0:00:03]} Kc3 {[%emt 0:00:02]} 64. Kh2 {[%emt 0:00:00]} Kd3 {[%emt 0:00:01]} 65. Kg2 {[%emt 0:00:00]} Ke3 {[%emt 0:00:01]} 66. Kh2 {[%emt 0:00:00]} Kf3 {[%emt 0:00:01]} 67. h4 {[%emt 0:00:00]} Nd4 {[%emt 0:00:01]} 68. Kh1 {[%emt 0:00:01]} Kxg3 {[%emt 0:00:01]} 69. Kg1 {[%emt 0:00:01]} Bh3 {[%emt 0:00:03]} 70. Kh1 {[%emt 0:00:00]} Bg2+ {[%emt 0:00:01]} 71. Kg1 {[%emt 0:00:01]} Nf3# {[%emt 0:00:01]} 0-1

[Event "FIDE Open World Rapid 2024"]
[Site "New York"]
[Date "2024.12.27"]
[Round "6.23"]
[White "Sardana, Rishi"]
[Black "Kadric, Denis"]
[Result "1/2-1/2"]
[ECO "B06"]
[WhiteElo "2466"]
[BlackElo "2544"]
[Annotator "ChessBase"]
[PlyCount "108"]
[EventDate "2024.12.14"]
[EventType "swiss"]
[EventCountry "USA"]
[SourceTitle "playchess.com"]
[Source "ChessBase"]
[SourceQuality "1"]
[TimeControl "900+10"]

1. e4 {[%emt 0:00:04]} g6 {[%emt 0:00:01]} 2. d4 {[%emt 0:00:03]} Bg7 {[%emt 0:00:01]} 3. Nf3 {[%emt 0:00:03]} d6 {[%emt 0:00:00]} 4. c3 {[%emt 0:00:05]} Nc6 {[%emt 0:00:07]} 5. Bd3 {[%emt 0:00:03]} e5 {[%emt 0:00:01]} 6. h3 {[%emt 0:00:03]} Nge7 {[%emt 0:00:18]} 7. O-O {[%emt 0:00:12]} O-O {[%emt 0:00:02]} 8. dxe5 {[%emt 0:00:04]} Nxe5 {[%emt 0:00:01]} 9. Nxe5 {[%emt 0:00:06]} dxe5 {[%emt 0:00:01]} 10. Qe2 {[%emt 0:00:18]} Be6 {[%emt 0:01:00]} 11. Be3 {[%emt 0:00:31]} a5 {[%emt 0:02:10]} 12. Rd1 {[%emt 0:00:19]} Qc8 {[%emt 0:00:59]} 13. Nd2 {[%emt 0:01:04]} f6 {[%emt 0:01:00]} 14. a4 {[%emt 0:01:17]} Rf7 {[%emt 0:00:05]} 15. Bc4 {[%emt 0:01:20]} Nc6 {[%emt 0:00:03]} 16. Bd5 {[%emt 0:02:25]} Bf8 {[%emt 0:02:42]} 17. Qb5 {[%emt 0:02:29]} Bxd5 {[%emt 0:01:23]} 18. exd5 {[%emt 0:00:25]} Ne7 {[%emt 0:00:01]} 19. Nc4 {[%emt 0:01:00]} c6 {[%emt 0:02:07]} 20. Qb3 {[%emt 0:01:23]} Nxd5 {[%emt 0:00:40]} 21. Rxd5 {[%emt 0:00:01]} cxd5 {[%emt 0:00:01]} 22. Nb6 {[%emt 0:00:02]} Qe8 {[%emt 0:00:37]} 23. Nxa8 {[%emt 0:00:02]} Qxa8 {[%emt 0:00:01]} 24. Qxd5 {[%emt 0:00:02]} Qa6 {[%emt 0:01:31]} 25. Rd1 {[%emt 0:00:13]} g5 {[%emt 0:00:01]} 26. Qb5 {[%emt 0:02:11]} Kg7 {[%emt 0:01:56]} 27. Qxa6 {[%emt 0:00:10]} bxa6 {[%emt 0:00:00]} 28. Rd5 {[%emt 0:00:01]} Rb7 {[%emt 0:00:12]} 29. Bc1 {[%emt 0:00:02]} Rb6 {[%emt 0:00:17]} 30. Kf1 {[%emt 0:00:59]} Kf7 {[%emt 0:00:15]} 31. Ke2 {[%emt 0:00:27]} Ke6 {[%emt 0:00:00]} 32. Rxa5 {[%emt 0:00:44]} Rc6 {[%emt 0:00:01]} 33. Kd3 {[%emt 0:01:01]} Be7 {[%emt 0:00:01]} 34. Be3 {[%emt 0:00:36]} f5 {[%emt 0:00:22]} 35. f3 {[%emt 0:00:35]} Rd6+ {[%emt 0:00:22]} 36. Ke2 {[%emt 0:00:01]} Rc6 {[%emt 0:00:00]} 37. g4 {[%emt 0:00:16]} f4 {[%emt 0:01:16]} 38. Ba7 {[%emt 0:00:01]} Bd8 {[%emt 0:00:31]} 39. Rc5 {[%emt 0:00:04]} Rxc5 {[%emt 0:00:01]} 40. Bxc5 {[%emt 0:00:02]} Kd5 {[%emt 0:00:00]} 41. Ba7 {[%emt 0:00:32]} e4 {[%emt 0:00:25]} 42. b3 {[%emt 0:00:04]} e3 {[%emt 0:00:13]} 43. Kd3 {[%emt 0:00:03]} Kc6 {[%emt 0:00:14]} 44. b4 {[%emt 0:00:12]} Bb6 {[%emt 0:00:08]} 45. Bb8 {[%emt 0:00:09]} Bc7 {[%emt 0:00:01]} 46. Bxc7 {[%emt 0:00:41]} Kxc7 {[%emt 0:00:01]} 47. a5 {[%emt 0:00:08]} Kc6 {[%emt 0:00:21]} 48. c4 {[%emt 0:00:02]} Kd6 {[%emt 0:00:01]} 49. b5 {[%emt 0:00:18]} axb5 {[%emt 0:00:01]} 50. cxb5 {[%emt 0:00:00]} Kc5 {[%emt 0:00:02]} 51. a6 {[%emt 0:00:13]} Kb6 {[%emt 0:00:00]} 52. Kc2 {[%emt 0:00:04]} Ka7 {[%emt 0:00:01]} 53. Kc3 {[%emt 0:00:03]} Kb6 {[%emt 0:00:01]} 54. Kd3 {[%emt 0:00:12]} Ka7 {[%emt 0:00:01]} 1/2-1/2

[Event "FIDE Open World Rapid 2024"]
[Site "New York"]
[Date "2024.12.27"]
[Round "6.24"]
[White "Le, Tuan Minh"]
[Black "Papasimakopoulos, Alexandros"]
[Result "1-0"]
[ECO "D30"]
[WhiteElo "2598"]
[BlackElo "2379"]
[Annotator "ChessBase"]
[PlyCount "97"]
[EventDate "2024.12.14"]
[EventType "swiss"]
[EventCountry "USA"]
[SourceTitle "playchess.com"]
[Source "ChessBase"]
[SourceQuality "1"]
[TimeControl "900+10"]

1. d4 {[%emt 0:00:08]} d5 {[%emt 0:00:02]} 2. c4 {[%emt 0:00:03]} e6 {[%emt 0:00:03]} 3. Nf3 {[%emt 0:00:04]} a6 {[%emt 0:00:09]} 4. Bg5 {[%emt 0:00:25]} Be7 {[%emt 0:00:04]} 5. Bxe7 {[%emt 0:00:04]} Qxe7 {[%emt 0:00:02]} 6. Nbd2 {[%emt 0:00:18]} Nf6 {[%emt 0:00:06]} 7. Rc1 {[%emt 0:00:04]} O-O {[%emt 0:00:06]} 8. g3 {[%emt 0:00:11]} dxc4 {[%emt 0:01:08]} 9. Nxc4 {[%emt 0:00:05]} Nc6 {[%emt 0:03:26]} 10. Bg2 {[%emt 0:00:32]} Rd8 {[%emt 0:00:08]} 11. e3 {[%emt 0:01:19]} Ne4 {[%emt 0:02:01]} 12. O-O {[%emt 0:00:14]} Nd6 {[%emt 0:00:02]} 13. Nce5 {[%emt 0:00:47]} Nxe5 {[%emt 0:00:12]} 14. Nxe5 {[%emt 0:00:02]} f6 {[%emt 0:00:24]} 15. Nd3 {[%emt 0:01:47]} c6 {[%emt 0:00:28]} 16. Qb3 {[%emt 0:00:14]} Kh8 {[%emt 0:00:18]} 17. Qb6 {[%emt 0:02:10]} Bd7 {[%emt 0:00:35]} 18. e4 {[%emt 0:01:35]} Be8 {[%emt 0:00:23]} 19. Qc5 {[%emt 0:02:09]} Rd7 {[%emt 0:01:26]} 20. Nf4 {[%emt 0:01:21]} Rad8 {[%emt 0:00:48]} 21. d5 {[%emt 0:00:40]} cxd5 {[%emt 0:01:21]} 22. exd5 {[%emt 0:00:02]} e5 {[%emt 0:00:29]} 23. Ne6 {[%emt 0:00:02]} Rc8 {[%emt 0:00:28]} 24. Qb4 {[%emt 0:01:19]} Bf7 {[%emt 0:01:11]} 25. Qg4 {[%emt 0:01:18]} Bg6 {[%emt 0:01:34]} 26. h4 {[%emt 0:00:20]} f5 {[%emt 0:01:04]} 27. Qb4 {[%emt 0:00:38]} Bf7 {[%emt 0:00:11]} 28. Rxc8+ {[%emt 0:00:05]} Nxc8 {[%emt 0:00:02]} 29. Qc3 {[%emt 0:00:02]} Nd6 {[%emt 0:00:51]} 30. Qxe5 {[%emt 0:00:02]} Qf6 {[%emt 0:00:10]} 31. f4 {[%emt 0:00:48]} h6 {[%emt 0:00:36]} 32. Rc1 {[%emt 0:00:04]} Kg8 {[%emt 0:00:25]} 33. b4 {[%emt 0:00:24]} Kh8 {[%emt 0:00:02]} 34. a4 {[%emt 0:00:01]} Kg8 {[%emt 0:00:01]} 35. b5 {[%emt 0:00:02]} axb5 {[%emt 0:00:09]} 36. axb5 {[%emt 0:00:01]} Qg6 {[%emt 0:00:23]} 37. Kh2 {[%emt 0:00:08]} Qf6 {[%emt 0:00:09]} 38. b6 {[%emt 0:00:08]} Ne8 {[%emt 0:00:05]} 39. Rc8 {[%emt 0:00:09]} Re7 {[%emt 0:00:16]} 40. Qxf6 {[%emt 0:01:45]} gxf6 {[%emt 0:00:01]} 41. Nc7 {[%emt 0:00:01]} Kf8 {[%emt 0:00:12]} 42. d6 {[%emt 0:00:09]} Rd7 {[%emt 0:00:01]} 43. Bxb7 {[%emt 0:00:21]} Rxd6 {[%emt 0:00:00]} 44. Bd5 {[%emt 0:00:09]} Bxd5 {[%emt 0:00:20]} 45. Nxe8 {[%emt 0:00:09]} Rxb6 {[%emt 0:00:36]} 46. Nxf6+ {[%emt 0:00:03]} Kf7 {[%emt 0:00:01]} 47. Nxd5 {[%emt 0:00:01]} Rb2+ {[%emt 0:00:02]} 48. Kh3 {[%emt 0:00:03]} Rd2 {[%emt 0:00:02]} 49. Ne3 {[%emt 0:00:03]} 1-0

[Event "FIDE Open World Rapid 2024"]
[Site "New York"]
[Date "2024.12.27"]
[Round "6.24"]
[White "Gan-Erdene, Sugar"]
[Black "Akobian, Varuzhan"]
[Result "0-1"]
[ECO "C14"]
[WhiteElo "2437"]
[BlackElo "2564"]
[Annotator "ChessBase"]
[PlyCount "115"]
[EventDate "2024.12.14"]
[EventType "swiss"]
[EventCountry "USA"]
[SourceTitle "playchess.com"]
[Source "ChessBase"]
[SourceQuality "1"]
[TimeControl "900+10"]

1. e4 {[%emt 0:00:07]} e6 {[%emt 0:00:13]} 2. d4 {[%emt 0:00:03]} d5 {[%emt 0:00:05]} 3. Nc3 {[%emt 0:00:02]} Nf6 {[%emt 0:00:51]} 4. Bg5 {[%emt 0:00:10]} Be7 {[%emt 0:00:03]} 5. e5 {[%emt 0:00:03]} Nfd7 {[%emt 0:00:01]} 6. h4 {[%emt 0:00:31]} h6 {[%emt 0:00:03]} 7. Bxe7 {[%emt 0:00:31]} Qxe7 {[%emt 0:00:07]} 8. Qd2 {[%emt 0:00:21]} a6 {[%emt 0:00:15]} 9. f4 {[%emt 0:00:13]} c5 {[%emt 0:00:03]} 10. Nf3 {[%emt 0:00:01]} Nc6 {[%emt 0:00:03]} 11. O-O-O {[%emt 0:00:16]} b5 {[%emt 0:00:16]} 12. Rh3 {[%emt 0:00:35]} c4 {[%emt 0:03:00]} 13. Rg3 {[%emt 0:03:52]} Qf8 {[%emt 0:01:48]} 14. f5 {[%emt 0:03:20]} Nb6 {[%emt 0:00:01]} 15. Qf4 {[%emt 0:01:52]} b4 {[%emt 0:00:49]} 16. Nb1 {[%emt 0:00:49]} Bd7 {[%emt 0:02:24]} 17. Be2 {[%emt 0:00:26]} O-O-O {[%emt 0:01:55]} 18. fxe6 {[%emt 0:00:26]} Bxe6 {[%emt 0:01:46]} 19. h5 {[%emt 0:00:03]} Rg8 {[%emt 0:03:36]} 20. Nh4 {[%emt 0:00:12]} Ne7 {[%emt 0:00:01]} 21. Bg4 {[%emt 0:00:22]} Qe8 {[%emt 0:00:00]} 22. Rf1 {[%emt 0:00:34]} Kb8 {[%emt 0:00:47]} 23. Bxe6 {[%emt 0:01:03]} fxe6 {[%emt 0:00:01]} 24. Qf7 {[%emt 0:01:04]} Rf8 {[%emt 0:00:04]} 25. Qxf8 {[%emt 0:00:02]} Qxf8 {[%emt 0:00:01]} 26. Rxf8 {[%emt 0:00:01]} Rxf8 {[%emt 0:00:00]} 27. Nd2 {[%emt 0:00:25]} Rf2 {[%emt 0:00:21]} 28. Kd1 {[%emt 0:01:34]} Rf7 {[%emt 0:00:52]} 29. Rf3 {[%emt 0:00:40]} Rxf3 {[%emt 0:00:03]} 30. Ndxf3 {[%emt 0:00:10]} Kc8 {[%emt 0:00:17]} 31. g4 {[%emt 0:00:04]} Kd8 {[%emt 0:00:17]} 32. Ng2 {[%emt 0:00:13]} Nd7 {[%emt 0:00:09]} 33. c3 {[%emt 0:00:05]} a5 {[%emt 0:00:03]} 34. Nf4 {[%emt 0:00:09]} Nf8 {[%emt 0:00:01]} 35. Ne1 {[%emt 0:00:07]} Ke8 {[%emt 0:00:26]} 36. Kd2 {[%emt 0:00:15]} Kf7 {[%emt 0:00:05]} 37. cxb4 {[%emt 0:00:03]} axb4 {[%emt 0:00:01]} 38. a3 {[%emt 0:00:07]} bxa3 {[%emt 0:00:03]} 39. bxa3 {[%emt 0:00:01]} Nc6 {[%emt 0:00:02]} 40. Kc3 {[%emt 0:00:11]} g5 {[%emt 0:00:05]} 41. Ne2 {[%emt 0:00:35]} Nd7 {[%emt 0:00:04]} 42. Nc2 {[%emt 0:00:03]} Nb6 {[%emt 0:00:02]} 43. Kd2 {[%emt 0:00:03]} Na4 {[%emt 0:00:02]} 44. Nc3 {[%emt 0:00:04]} Nxc3 {[%emt 0:00:02]} 45. Kxc3 {[%emt 0:00:01]} Ke7 {[%emt 0:00:01]} 46. a4 {[%emt 0:00:12]} Kd7 {[%emt 0:00:01]} 47. Na3 {[%emt 0:00:01]} Na7 {[%emt 0:00:09]} 48. Kb4 {[%emt 0:00:03]} Nc6+ {[%emt 0:01:34]} 49. Kc5 {[%emt 0:00:05]} Na5 {[%emt 0:00:15]} 50. Nb5 {[%emt 0:00:05]} Nc6 {[%emt 0:00:10]} 51. Kb6 {[%emt 0:00:15]} c3 {[%emt 0:00:04]} 52. Nxc3 {[%emt 0:00:01]} Nxd4 {[%emt 0:00:01]} 53. a5 {[%emt 0:00:01]} Nc6 {[%emt 0:00:01]} 54. a6 {[%emt 0:00:03]} d4 {[%emt 0:00:35]} 55. Ne4 {[%emt 0:00:06]} d3 {[%emt 0:00:02]} 56. Nc5+ {[%emt 0:00:05]} Kc8 {[%emt 0:00:02]} 57. Kxc6 {[%emt 0:00:10]} d2 {[%emt 0:00:11]} 58. a7 {[%emt 0:00:01]} 0-1

[Event "FIDE Open World Rapid 2024"]
[Site "New York"]
[Date "2024.12.27"]
[Round "6.25"]
[White "Theodorou, Nikolas"]
[Black "Wei, Yi"]
[Result "1-0"]
[ECO "D87"]
[WhiteElo "2600"]
[BlackElo "2753"]
[Annotator "TA"]
[PlyCount "117"]
[EventDate "2024.12.14"]
[EventType "swiss"]
[EventCountry "USA"]
[SourceTitle "playchess.com"]
[Source "ChessBase"]
[SourceQuality "1"]
[TimeControl "900+10"]

{[%evp 37,117,91,135,133,133,131,139,146,150,130,133,126,125,128,142,151,155,150,156,164,177,179,167,175,179,189,187,158,182,195,306,306,406,411,437,437,433,379,437,430,430,427,386,357,554,554,537,527,609,604,602,587,580,533,601,601,553,598,769,769,769,704,755,618,747,737,6598,6598,6598,6365,6598,6420,6420,5776,12848,12667,6092,6077,5910,5895,5873,5050]} 1. d4 {[%emt 0:00:02]} Nf6 {[%emt 0:00:03]} 2. c4 {[%emt 0:00:03]} g6 {[%emt 0:00:02]} 3. Nc3 {[%emt 0:00:02]} d5 {[%emt 0:00:02]} 4. cxd5 {[%emt 0:00:02]} Nxd5 {[%emt 0:00:02]} 5. e4 {[%emt 0:00:02]} Nxc3 {[%emt 0:00:02]} 6. bxc3 {[%emt 0:00:02]} Bg7 {[%emt 0:00:02]} 7. Bc4 {[%emt 0:00:11]} c5 {[%emt 0:00:12]} 8. Ne2 {[%emt 0:00:04]} O-O {[%emt 0:00:23]} 9. O-O {[%emt 0:00:25]} Nc6 {[%emt 0:00:16]} 10. Be3 {[%emt 0:00:03]} b6 {[%emt 0:00:53]} 11. h4 {[%emt 0:00:31]} e6 {[%emt 0:00:46]} 12. h5 {[%emt 0:00:02]} Qh4 {[%emt 0:00:18]} 13. Qc1 {[%emt 0:00:03]} cxd4 {[%emt 0:02:13]} 14. cxd4 {[%emt 0:00:02]} Qxh5 {[%emt 0:01:57]} 15. Rb1 {[%emt 0:00:02]} Bb7 {[%emt 0:01:24]} 16. Bb5 {[%emt 0:00:02]} Nxd4 {[%emt 0:03:55]} 17. Nxd4 {[%emt 0:04:27]} Rac8 {[%emt 0:00:25]} 18. Qd1 {[%emt 0:00:50]} Qh4 {[%emt 0:00:31]} 19. Bd3 {[%emt 0:01:47]} Rfd8 {[%emt 0:01:02]} 20. Nf3 {[%emt 0:00:05]} Qg4 {[%emt 0:00:03]} 21. Ng5 {[%emt 0:01:51]} Qxd1 {[%emt 0:01:17]} 22. Rbxd1 {[%emt 0:00:07]} h6 {[%emt 0:00:01]} 23. Nf3 {[%emt 0:00:23]} g5 {[%emt 0:00:04]} 24. Bb1 {[%emt 0:02:28]} Ba6 {[%emt 0:00:13] [#]} 25. Rfe1 $1 {[%emt 0:00:35]} (25. Rxd8+ $6 Rxd8 26. Rc1 Bb2 $11) 25... g4 {[%emt 0:00:16] [#]} 26. Nd4 $1 {[%emt 0:00:22]} h5 {[%emt 0:00:26]} 27. a4 {[%emt 0:01:48]} Rc4 {[%emt 0:01:29]} 28. Nb5 {[%emt 0:00:56]} Ra8 {[%emt 0:00:24]} 29. Bd3 {[%emt 0:01:10]} Rxa4 {[%emt 0:00:11]} 30. Nc7 {[%emt 0:00:07]} Bxd3 {[%emt 0:00:00]} 31. Nxa8 {[%emt 0:00:02]} Bxe4 {[%emt 0:00:13]} 32. Nc7 {[%emt 0:00:04]} Be5 {[%emt 0:00:32]} 33. Nb5 {[%emt 0:00:17]} Bf6 {[%emt 0:00:50]} (33... Bc6 $142) 34. Bd4 $18 {[%emt 0:00:18]} Bxd4 {[%emt 0:00:12]} 35. Rxd4 {[%emt 0:00:10]} (35. Rxe4 Bxf2+ 36. Kxf2 Rxe4 37. Nxa7 h4 $11) (35. Nxd4 Bd5 $18) 35... Rxd4 {[%emt 0:00:06]} 36. Nxd4 {[%emt 0:00:01]} Bd3 {[%emt 0:00:03]} 37. Rc1 {[%emt 0:00:52]} b5 {[%emt 0:00:19]} 38. Rc8+ {[%emt 0:00:32]} Kg7 {[%emt 0:00:02]} 39. Ra8 {[%emt 0:00:01]} e5 {[%emt 0:00:08]} 40. Nb3 {[%emt 0:00:13]} f5 {[%emt 0:00:08]} (40... Kf6 {is a better defense.} 41. Rxa7 h4 42. Ra6+ Kf5) 41. Rxa7+ $18 {[%emt 0:00:05]} Kf6 {[%emt 0:00:03]} 42. Ra6+ {[%emt 0:00:12]} Kg5 {[%emt 0:00:02]} 43. Nc5 {[%emt 0:00:18]} Bc4 {[%emt 0:00:01]} 44. Ne6+ {[%emt 0:00:04]} Kf6 {[%emt 0:00:02]} 45. Nc7+ {[%emt 0:00:02]} Kg5 {[%emt 0:00:07]} 46. Rb6 {[%emt 0:00:03]} h4 {[%emt 0:00:14]} 47. Nxb5 {[%emt 0:00:02]} g3 {[%emt 0:00:07]} 48. Nd6 {[%emt 0:00:12]} Ba2 {[%emt 0:00:28]} 49. Rb2 {[%emt 0:00:22]} Be6 {[%emt 0:00:05]} 50. Rb5 {[%emt 0:00:19]} Kf4 {[%emt 0:00:06]} 51. f3 {[%emt 0:00:16]} e4 {[%emt 0:00:48]} 52. fxe4 {[%emt 0:00:20]} fxe4 {[%emt 0:00:02]} 53. Rh5 {[%emt 0:00:09]} h3 {[%emt 0:00:06]} 54. Rh4+ {[%emt 0:00:16]} Kg5 {[%emt 0:00:06]} 55. Rxe4 {[%emt 0:00:08]} ({Stronger than} 55. Nxe4+ Kxh4 56. gxh3 Kxh3 $11) 55... h2+ {[%emt 0:00:02]} 56. Kh1 {[%emt 0:00:01]} Bd7 {[%emt 0:00:15]} 57. Rd4 {[%emt 0:00:09]} Bc6 {[%emt 0:00:13]} 58. Nc4 {[%emt 0:00:04]} Bb7 {[%emt 0:00:17]} 59. Ne3 {[%emt 0:00:02]} 1-0

[Event "FIDE Open World Rapid 2024"]
[Site "New York"]
[Date "2024.12.27"]
[Round "6.25"]
[White "Degenbaev, Aziz"]
[Black "Brodsky, David"]
[Result "1/2-1/2"]
[ECO "C55"]
[WhiteElo "2260"]
[BlackElo "2538"]
[Annotator "ChessBase"]
[PlyCount "117"]
[EventDate "2024.12.14"]
[EventType "swiss"]
[EventCountry "USA"]
[SourceTitle "playchess.com"]
[Source "ChessBase"]
[SourceQuality "1"]
[TimeControl "900+10"]

1. e4 {[%emt 0:00:01]} e5 {[%emt 0:00:02]} 2. Nf3 {[%emt 0:00:05]} Nc6 {[%emt 0:00:01]} 3. Bc4 {[%emt 0:00:30]} Nf6 {[%emt 0:00:06]} 4. d3 {[%emt 0:00:01]} Be7 {[%emt 0:00:47]} 5. Nc3 {[%emt 0:00:05]} d6 {[%emt 0:00:13]} 6. h3 {[%emt 0:00:34]} Na5 {[%emt 0:00:44]} 7. Bb3 {[%emt 0:00:10]} Nxb3 {[%emt 0:00:17]} 8. axb3 {[%emt 0:00:01]} O-O {[%emt 0:00:04]} 9. O-O {[%emt 0:00:02]} h6 {[%emt 0:00:50]} 10. d4 {[%emt 0:00:55]} exd4 {[%emt 0:01:02]} 11. Qxd4 {[%emt 0:00:01]} b6 {[%emt 0:01:17]} 12. Be3 {[%emt 0:01:56]} Bb7 {[%emt 0:00:06]} 13. Rad1 {[%emt 0:00:17]} Re8 {[%emt 0:00:36]} 14. Rfe1 {[%emt 0:00:18]} Nd7 {[%emt 0:01:32]} 15. Qa4 {[%emt 0:03:50]} Bf6 {[%emt 0:01:03]} 16. Bd4 {[%emt 0:00:11]} Nc5 {[%emt 0:00:35]} 17. Bxc5 {[%emt 0:00:35]} bxc5 {[%emt 0:00:02]} 18. Rd3 {[%emt 0:02:16]} Re6 {[%emt 0:01:57]} 19. Nd5 {[%emt 0:01:46]} Bxd5 {[%emt 0:02:06]} 20. exd5 {[%emt 0:00:01]} Rxe1+ {[%emt 0:00:07]} 21. Nxe1 {[%emt 0:00:01]} Bxb2 {[%emt 0:00:43]} 22. Nf3 {[%emt 0:01:22]} Qe8 {[%emt 0:00:25]} 23. Qa5 {[%emt 0:00:20]} Qd7 {[%emt 0:01:08]} 24. Re3 {[%emt 0:00:47]} Bf6 {[%emt 0:00:04]} 25. Qa6 {[%emt 0:00:33]} g6 {[%emt 0:01:38]} 26. Re2 {[%emt 0:00:55]} Kg7 {[%emt 0:00:04]} 27. Qb7 {[%emt 0:00:25]} Qc8 {[%emt 0:00:12]} 28. Qc6 {[%emt 0:00:01]} a5 {[%emt 0:00:16]} 29. Re4 {[%emt 0:00:55]} Rb8 {[%emt 0:00:25]} 30. Nd2 {[%emt 0:00:26]} Rb6 {[%emt 0:00:21]} 31. Re8 {[%emt 0:00:12]} Qb7 {[%emt 0:00:56]} 32. Qxb7 {[%emt 0:00:11]} Rxb7 {[%emt 0:00:01]} 33. Ra8 {[%emt 0:00:01]} Bc3 {[%emt 0:00:22]} 34. Nc4 {[%emt 0:00:02]} Kf6 {[%emt 0:00:24]} 35. Kf1 {[%emt 0:00:03]} Kf5 {[%emt 0:00:10]} 36. Ke2 {[%emt 0:00:10]} Ke4 {[%emt 0:00:10]} 37. Ne3 {[%emt 0:00:01]} Be5 {[%emt 0:00:18]} 38. Rxa5 {[%emt 0:00:08]} Bd4 {[%emt 0:00:05]} 39. Ra4 {[%emt 0:00:43]} Ke5 {[%emt 0:00:08]} 40. Ng4+ {[%emt 0:00:01]} Kxd5 {[%emt 0:00:01]} 41. Nxh6 {[%emt 0:00:02]} c6 {[%emt 0:00:05]} 42. Ng4 {[%emt 0:00:09]} f5 {[%emt 0:00:13]} 43. Ne3+ {[%emt 0:00:01]} Ke6 {[%emt 0:00:01]} 44. Ra6 {[%emt 0:00:11]} f4 {[%emt 0:00:21]} 45. Ng4 {[%emt 0:00:02]} Kd5 {[%emt 0:00:14]} 46. Kd3 {[%emt 0:00:10]} Re7 {[%emt 0:00:20]} 47. c3 {[%emt 0:00:01]} Bg7 {[%emt 0:00:07]} 48. c4+ {[%emt 0:00:01]} Ke6 {[%emt 0:00:02]} 49. Rxc6 {[%emt 0:00:05]} Rb7 {[%emt 0:00:07]} 50. Ke4 {[%emt 0:00:07]} g5 {[%emt 0:00:24]} 51. Rc8 {[%emt 0:00:04]} Rxb3 {[%emt 0:00:02]} 52. Rg8 {[%emt 0:00:01]} Rb7 {[%emt 0:00:21]} 53. Re8+ {[%emt 0:00:17]} Kf7 {[%emt 0:00:10]} 54. Rc8 {[%emt 0:00:08]} Ke6 {[%emt 0:00:08]} 55. Re8+ {[%emt 0:00:39]} Kd7 {[%emt 0:00:01]} 56. Rg8 {[%emt 0:00:06]} Kc6 {[%emt 0:00:02]} 57. Rc8+ {[%emt 0:00:16]} Kd7 {[%emt 0:00:13]} 58. Rg8 {[%emt 0:00:01]} Ke6 {[%emt 0:00:09]} 59. Re8+ {[%emt 0:01:05]} 1/2-1/2